bitfinex/quotes_SOLUSD_20241127
["timestamp","ask_amount","ask_price","bid_price","bid_amount"]
[1732749065963,19.74834278,241.6,241.53,19.74834278]
[1732749066182,19.74834278,241.58,241.51,20.0]
[1732749066366,0.82377997,241.57,241.52,20.0]
[1732749066570,19.74834278,241.62,241.53,19.74834278]
[1732749066783,0.82377997,241.61,241.56,20.0]
[1732749066956,19.74834278,241.66,241.58,20.0]
[1732749067287,0.82377997,241.65,241.58,20.0]
[1732749067773,0.82377997,241.65,241.57,4.1395]
[1732749067976,19.74834278,241.64,241.57,4.1395]
[1732749068158,0.82377997,241.63,241.57,4.1395]
[1732749068962,19.74834278,241.6,241.53,10.3245]
[1732749069167,19.74834278,241.62,241.53,10.3245]
[1732749069465,0.82377997,241.61,241.53,10.3245]
[1732749072092,19.74834278,241.6,241.53,10.3245]
[1732749072463,19.74834278,241.58,241.53,10.3245]
[1732749072663,0.82377997,241.57,241.53,10.3245]
[1732749072882,19.74834278,241.6,241.53,10.3245]
[1732749073087,0.82377997,241.59,241.53,10.3245]
[1732749073560,0.82377997,241.59,241.45,16.2961]
[1732749073561,19.74834278,241.58,241.48,25.93274278]
[1732749073756,19.74834278,241.58,241.5,23.88904278]
[1732749073757,0.82377997,241.57,241.5,23.88904278]
[1732749074175,19.74834278,241.6,241.52,19.74834278]
[1732749074381,0.82377997,241.59,241.52,19.74834278]
[1732749074785,19.74834278,241.64,241.57,20.0]
[1732749075085,19.74834278,241.64,241.59,20.0]
[1732749075262,0.82377997,241.63,241.59,20.0]
[1732749075772,0.82377997,241.63,241.59,24.1391]
[1732749076972,0.82377997,241.63,241.59,23.1391]
[1732749078170,19.74834278,241.62,241.57,4.1395]
[1732749078373,19.74834278,241.6,241.52,30.09904278]
[1732749078577,0.82377997,241.59,241.53,4.1402]
[1732749078965,19.74834278,241.57,241.4,10.3561]
[1732749079170,19.74834278,241.51,241.43,19.74834278]
[1732749079673,0.82377997,241.5,241.43,19.74834278]
[1732749079873,0.82377997,241.5,241.41,23.89064278]
[1732749081071,0.82377997,241.5,241.44,20.0]
[1732749081794,0.82377997,241.5,241.44,24.1417]
[1732749081993,19.74834278,241.55,241.48,20.0]
[1732749082194,19.74834278,241.57,241.49,19.74834278]
[1732749082488,0.82377997,241.56,241.49,19.74834278]
[1732749082785,0.82377997,241.56,241.44,4.1417]
[1732749082786,0.82377997,241.56,241.5,20.0]
[1732749082993,19.74834278,241.55,241.5,20.0]
[1732749083181,0.82377997,241.54,241.48,24.141]
[1732749083392,0.82377997,241.54,241.48,4.141]
[1732749083596,0.82377997,241.54,241.5,20.0]
[1732749084098,19.74834278,241.57,241.5,20.0]
[1732749084416,0.82377997,241.56,241.5,20.0]
[1732749084791,19.74834278,241.55,241.5,20.0]
[1732749084992,0.82377997,241.54,241.46,4.1414]
[1732749085287,0.82377997,241.54,241.5,20.0]
[1732749085488,19.74834278,241.57,241.5,20.0]
[1732749085687,12.1882,241.66,241.5,20.0]
[1732749085688,19.74834278,241.55,241.5,20.0]
[1732749085999,19.74834278,241.57,241.52,20.0]
[1732749086184,12.33857936,241.58,241.52,20.0]
[1732749086489,12.33857936,241.56,241.5,20.0]
[1732749086674,12.33857936,241.58,241.5,20.0]
[1732749086875,0.82377997,241.57,241.51,4.1406]
[1732749087079,12.33857936,241.56,241.51,4.1406]
[1732749087295,0.82377997,241.55,241.49,20.0]
[1732749087501,12.33857936,241.54,241.46,4.1414]
[1732749087704,12.33857936,241.5,241.41,12.33857936]
[1732749087890,0.82377997,241.49,241.41,12.33857936]
[1732749088875,12.33857936,241.48,241.39,18.43327936]
[1732749089195,0.82377997,241.47,241.4,4.1423]
[1732749089403,0.82377997,241.47,241.39,18.43327936]
[1732749090886,5.0,241.59,241.43,12.33857936]
[1732749090887,12.33857936,241.52,241.43,12.33857936]
[1732749091084,0.82377997,241.51,241.46,20.0]
[1732749091390,12.33857936,241.56,241.48,20.0]
[1732749091588,0.82377997,241.55,241.48,20.0]
[1732749092181,0.82377997,241.55,241.47,19.74455519]
[1732749092377,0.82377997,241.55,241.47,23.88575519]
[1732749093499,19.74455519,241.54,241.45,19.74455519]
[1732749093795,19.74455519,241.52,241.43,19.74455519]
[1732749093973,0.82377997,241.51,241.43,19.74455519]
[1732749094381,0.82377997,241.51,241.43,23.88645519]
[1732749094587,19.74455519,241.54,241.45,19.74455519]
[1732749094800,0.82377997,241.53,241.45,19.74455519]
[1732749096389,19.74455519,241.5,241.43,20.0]
[1732749096600,0.82377997,241.49,241.44,20.0]
[1732749097475,0.82377997,241.51,241.44,20.0]
[1732749098305,19.74455519,241.5,241.43,20.0]
[1732749098481,0.82377997,241.49,241.44,20.0]
[1732749099010,0.82377997,241.49,241.42,4.142]
[1732749099213,0.82377997,241.49,241.43,19.74455519]
[1732749099376,0.82377997,241.51,241.43,19.74455519]
[1732749104010,19.74455519,241.5,241.42,20.0]
[1732749104309,19.74455519,241.56,241.39,25.83925519]
[1732749104310,19.74455519,241.48,241.39,25.83925519]
[1732749104482,0.82377997,241.47,241.39,25.83925519]
[1732749105281,19.74455519,241.48,241.39,6.0947]
[1732749105505,19.74455519,241.5,241.41,19.74455519]
[1732749105680,0.82377997,241.49,241.41,19.74455519]
[1732749105883,19.74455519,241.48,241.39,25.83925519]
[1732749106091,0.82377997,241.47,241.39,25.83925519]
[1732749106509,0.82377997,241.47,241.39,29.98175519]
[1732749107011,0.82377997,241.47,241.41,19.74455519]
[1732749107315,12.1882,241.54,241.41,19.74455519]
[1732749107316,0.82377997,241.49,241.43,19.74455519]
[1732749107682,0.82377997,241.51,241.43,19.74455519]
[1732749107888,19.74455519,241.48,241.39,29.98175519]
[1732749108111,0.82377997,241.47,241.39,29.98175519]
[1732749108302,0.82377997,241.47,241.39,25.83925519]
[1732749109003,19.74455519,241.46,241.37,19.74455519]
[1732749109209,0.82377997,241.45,241.37,19.74455519]
[1732749109430,19.74455519,241.46,241.39,19.74455519]
[1732749109712,19.74455519,241.48,241.39,19.74455519]
[1732749109896,0.82377997,241.47,241.39,19.74455519]
[1732749110911,0.82377997,241.47,241.39,23.88715519]
[1732749111097,19.74455519,241.46,241.37,19.74455519]
[1732749111296,0.82377997,241.45,241.37,19.74455519]
[1732749111710,0.82377997,241.45,241.37,23.88745519]
[1732749112111,19.74455519,241.44,241.35,19.74455519]
[1732749112410,0.82377997,241.43,241.35,12.35268291]
[1732749113004,0.82377997,241.43,241.35,16.49598291]
[1732749114307,0.82377997,241.43,241.35,4.1433]
[1732749114492,12.35268291,241.41,241.32,6.1802]
[1732749114800,12.35268291,241.41,241.33,12.35268291]
[1732749115005,0.82377997,241.4,241.33,12.35268291]
[1732749115194,12.35268291,241.41,241.33,12.35268291]
[1732749115601,0.82377997,241.4,241.33,16.49628291]
[1732749116013,12.35268291,241.41,241.33,16.49628291]
[1732749116318,0.82377997,241.4,241.33,16.49628291]
[1732749116496,0.82377997,241.4,241.32,6.1802]
[1732749117498,0.82377997,241.4,241.32,10.324]
[1732749117702,12.35268291,241.39,241.26,6.1802]
[1732749117897,12.35268291,241.36,241.26,6.1802]
[1732749118105,0.82377997,241.35,241.27,12.35268291]
[1732749118820,0.82377997,241.35,241.25,16.49768291]
[1732749119025,0.82377997,241.35,241.27,12.35268291]
[1732749119817,0.82377997,241.35,241.24,20.0]
[1732749120025,0.82377997,241.35,241.27,12.35268291]
[1732749120899,0.82377997,241.35,241.24,4.1452]
[1732749121101,12.35268291,241.34,241.24,16.49788291]
[1732749121300,0.82377997,241.33,241.24,16.49788291]
[1732749121616,12.35268291,241.36,241.26,12.35268291]
[1732749121956,5.0,241.42,241.24,4.1452]
[1732749121957,12.35268291,241.34,241.25,12.35268291]
[1732749122100,0.82377997,241.33,241.25,16.49768291]
[1732749122297,0.82377997,241.33,241.23,0.4831525]
[1732749122298,12.35268291,241.32,241.23,0.4831525]
[1732749122494,0.82377997,241.31,241.23,0.4831525]
[1732749122917,0.82377997,241.31,241.25,12.35268291]
[1732749123118,0.82377997,241.33,241.25,12.35268291]
[1732749123494,12.35268291,241.32,241.23,16.98123541]
[1732749123695,0.82377997,241.31,241.23,12.83583541]
[1732749123923,12.35268291,241.3,241.23,0.4831525]
[1732749124113,12.35268291,241.28,241.23,0.4831525]
[1732749124416,23.7,241.38,241.23,0.4831525]
[1732749124417,12.35268291,241.26,241.23,0.4831525]
[1732749124614,0.82377997,241.25,241.23,0.4831525]
[1732749126200,12.35268291,241.28,241.23,0.4831525]
[1732749126201,0.82377997,241.27,241.23,0.4831525]
[1732749126714,13.17646288,241.3,241.23,0.4831525]
[1732749127016,0.82377997,241.29,241.23,0.4831525]
[1732749128004,0.82377997,241.3,241.23,12.83583541]
[1732749128205,0.82377997,241.3,241.23,16.98123541]
[1732749128523,13.17646288,241.3,241.23,0.4831525]
[1732749129221,12.35268291,241.3,241.23,0.4831525]
[1732749130404,12.35268291,241.32,241.23,16.98113541]
[1732749130623,40.44521879,241.59,241.23,16.98113541]
[1732749130624,12.35268291,241.36,241.25,6.1802]
[1732749130897,18.7,241.43,241.25,18.53288291]
[1732749130898,12.35268291,241.34,241.25,18.53288291]
[1732749131535,12.35268291,241.32,241.25,6.1802]
[1732749132022,12.35268291,241.3,241.23,0.4831525]
[1732749132626,20.0,241.35,241.23,16.98103541]
[1732749132922,12.35268291,241.3,241.23,0.4831525]
[1732749133513,12.35268291,241.32,241.23,12.83583541]
[1732749133716,12.35268291,241.32,241.23,16.98103541]
[1732749134927,12.35268291,241.3,241.23,0.4831525]
[1732749136903,12.35268291,241.28,241.23,0.4831525]
[1732749137104,12.35268291,241.24,241.23,0.4831525]
[1732749138323,12.35268291,241.26,241.23,0.4831525]
[1732749138907,12.35268291,241.28,241.23,0.4831525]
[1732749139440,12.35268291,241.26,241.23,0.4831525]
[1732749139723,12.35268291,241.28,241.23,0.4831525]
[1732749140305,5.0,241.38,241.23,0.4831525]
[1732749140306,12.35268291,241.26,241.23,0.4831525]
[1732749141936,12.35268291,241.28,241.23,0.4831525]
[1732749143337,42.476884,241.36,241.23,0.4831525]
[1732749143338,12.35268291,241.26,241.23,0.4831525]
[1732749143533,12.35268291,241.24,241.23,0.4831525]
[1732749146528,36.12956691,241.24,241.23,0.4831525]
[1732749147042,25.0,241.27,241.23,0.4831525]
[1732749147221,36.12956691,241.24,241.23,0.4831525]
[1732749147914,23.776884,241.24,241.23,0.4831525]
[1732749148238,36.12956691,241.24,241.23,0.4831525]
[1732749148624,12.35268291,241.24,241.23,0.4831525]
[1732749149515,12.35268291,241.26,241.23,0.4831525]
[1732749149719,12.35268291,241.28,241.23,0.4831525]
[1732749149918,12.35268291,241.32,241.23,0.4831525]
[1732749150440,12.35268291,241.32,241.23,4.6284525]
[1732749150840,12.35268291,241.32,241.24,12.35268291]
[1732749151235,12.35268291,241.31,241.23,32.83583541]
[1732749151542,12.35268291,241.31,241.23,12.83583541]
[1732749151933,12.35268291,241.31,241.23,16.98123541]
[1732749152130,12.35268291,241.31,241.23,12.83583541]
[1732749154022,12.35268291,241.31,241.23,0.4831525]
[1732749154225,12.35268291,241.29,241.23,0.4831525]
[1732749156052,12.35268291,241.31,241.26,20.0]
[1732749156243,12.35268291,241.33,241.25,12.35268291]
[1732749156820,12.35268291,241.31,241.24,43.776884]
[1732749157024,12.35268291,241.31,241.26,20.0]
[1732749157232,12.35268291,241.31,241.24,27.922084]
[1732749158748,12.35268291,241.31,241.24,23.776884]
[1732749159327,12.35268291,241.31,241.26,20.0]
[1732749159541,12.35268291,241.33,241.26,20.0]
[1732749159745,12.35268291,241.37,241.3,20.0]
[1732749159947,12.35268291,241.39,241.31,32.35268291]
[1732749160847,12.35268291,241.39,241.31,20.0]
[1732749161052,12.35268291,241.39,241.31,32.35268291]
[1732749161940,12.35268291,241.41,241.33,12.35268291]
[1732749163732,12.35268291,241.39,241.31,32.35268291]
[1732749163931,12.35268291,241.41,241.31,36.49668291]
[1732749164555,12.35268291,241.41,241.33,12.35268291]
[1732749165252,12.35268291,241.39,241.31,36.49668291]
[1732749166470,12.35268291,241.39,241.32,20.0]
[1732749166983,12.35268291,241.33,241.28,22.6733]
[1732749167329,12.35268291,241.35,241.28,22.6733]
[1732749167951,12.35268291,241.33,241.28,22.6733]
[1732749169443,12.35268291,241.31,241.28,22.6733]
[1732749169863,18.7,241.42,241.28,22.6733]
[1732749170162,12.35268291,241.34,241.28,22.6733]
[1732749170349,12.35268291,241.32,241.28,22.6733]
[1732749170953,12.35268291,241.34,241.28,22.6733]
[1732749175272,12.35268291,241.32,241.28,22.6733]
[1732749176968,12.35268291,241.32,241.28,21.63797471]
[1732749177975,17.35268291,241.44,241.28,21.63797471]
[1732749177976,12.35268291,241.34,241.28,21.63797471]
[1732749179245,12.35268291,241.32,241.28,21.63797471]
[1732749180678,12.35268291,241.3,241.28,21.63797471]
[1732749181171,12.35268291,241.3,241.23,6.8222525]
[1732749181352,12.35268291,241.25,241.23,6.8222525]
[1732749181762,12.35268291,241.27,241.23,6.8222525]
[1732749183467,12.35268291,241.25,241.23,6.8222525]
[1732749184749,12.35268291,241.27,241.23,6.8222525]
[1732749185350,12.35268291,241.25,241.23,6.8222525]
[1732749185550,12.35268291,241.27,241.23,6.8222525]
[1732749185773,12.35268291,241.31,241.23,6.8222525]
[1732749186963,12.35268291,241.27,241.23,6.8222525]
[1732749187171,12.35268291,241.25,241.23,0.4831525]
[1732749189581,36.12956691,241.24,241.11,22.9406]
[1732749189791,12.35268291,241.13,241.11,22.9406]
[1732749190365,12.35268291,241.13,241.05,22.9406]
[1732749190688,12.35268291,241.11,241.05,22.9406]
[1732749195261,12.35268291,241.13,241.05,27.089]
[1732749196678,12.35268291,241.11,241.05,27.089]
[1732749196866,12.35268291,241.13,241.05,39.44168291]
[1732749197860,12.35268291,241.2,241.05,39.44168291]
[1732749197861,12.35268291,241.14,241.05,39.44168291]
[1732749199269,12.35268291,241.12,241.05,39.44168291]
[1732749199758,12.35268291,241.12,241.05,22.9406]
[1732749200967,12.35268291,241.1,241.05,22.9406]
[1732749201184,12.35268291,241.06,241.05,22.9406]
[1732749203077,12.35268291,241.06,240.99,24.1494]
[1732749204995,12.35268291,241.04,240.98,0.4831525]
[1732749205373,12.35268291,241.02,240.98,0.4831525]
[1732749207189,12.35268291,241.0,240.98,0.4831525]
[1732749210687,12.35268291,241.02,240.98,0.4831525]
[1732749210892,12.35268291,241.08,241.0,15.2716]
[1732749211188,12.35268291,241.04,241.0,15.2716]
[1732749211372,12.35268291,241.06,241.0,15.2716]
[1732749212488,12.35268291,241.08,241.0,15.2716]
[1732749212692,12.35268291,241.08,241.01,16.50188291]
[1732749213380,12.35268291,241.1,241.01,16.50188291]
[1732749214498,23.776884,241.18,241.01,12.35268291]
[1732749214499,12.35268291,241.08,241.01,12.35268291]
[1732749214791,12.35268291,241.08,241.0,15.2716]
[1732749215380,12.35268291,241.02,241.0,15.2716]
[1732749217100,12.35268291,241.02,240.99,6.3661]
[1732749217277,12.35268291,241.02,240.98,0.4831525]
[1732749217278,12.35268291,241.0,240.98,0.4831525]
[1732749220075,20.0,241.07,240.98,0.4831525]
[1732749220285,12.35268291,241.03,240.98,0.4831525]
[1732749220484,12.35268291,240.99,240.98,0.4831525]
[1732749221778,24.70536582,240.99,240.98,0.4831525]
[1732749222101,48.48224982,240.99,240.86,6.3923]
[1732749222398,12.35268291,240.87,240.79,12.35268291]
[1732749222703,12.35268291,240.96,240.78,4.1531]
[1732749222704,12.35268291,240.89,240.78,4.98131591]
[1732749222889,12.35268291,240.89,240.79,12.35268291]
[1732749223089,12.35268291,240.89,240.81,12.35268291]
[1732749223316,12.35268291,240.89,240.79,12.35268291]
[1732749223800,12.35268291,240.89,240.8,4.1528]
[1732749223987,12.35268291,240.87,240.82,20.0]
[1732749224185,12.35268291,240.87,240.79,16.50548291]
[1732749225193,12.35268291,240.89,240.79,16.50548291]
[1732749225597,12.35268291,240.87,240.79,16.50548291]
[1732749225903,12.35268291,240.87,240.77,38.81378291]
[1732749226099,12.35268291,240.85,240.77,38.81378291]
[1732749226605,12.35268291,240.83,240.77,22.3079]
[1732749227489,5.0,240.93,240.77,22.3079]
[1732749227490,12.35268291,240.79,240.77,22.3079]
[1732749227683,12.35268291,240.81,240.77,22.3079]
[1732749227887,12.35268291,240.83,240.77,22.3079]
[1732749228201,20.0,240.94,240.79,12.35268291]
[1732749228390,12.35268291,240.89,240.81,12.35268291]
[1732749228588,12.35268291,240.87,240.77,26.4612]
[1732749228777,12.35268291,240.89,240.79,12.35268291]
[1732749228982,12.35268291,240.89,240.82,20.0]
[1732749229183,12.35268291,240.87,240.79,12.35268291]
[1732749229487,12.35268291,240.87,240.8,20.0]
[1732749229681,12.35268291,240.85,240.8,20.0]
[1732749230294,12.35268291,240.83,240.77,22.3079]
[1732749231203,12.35268291,240.83,240.77,26.4612]
[1732749231510,12.35268291,240.85,240.77,38.81388291]
[1732749232088,12.35268291,240.87,240.77,26.4612]
[1732749232285,12.35268291,240.87,240.8,23.776884]
[1732749232803,12.35268291,240.96,240.8,23.776884]
[1732749232804,12.35268291,240.89,240.8,23.776884]
[1732749233011,12.35268291,240.89,240.81,12.35268291]
[1732749233304,12.35268291,240.93,240.85,12.35268291]
[1732749233483,12.35268291,240.95,240.87,6.121]
[1732749233682,12.35268291,240.95,240.88,15.3302]
[1732749234684,12.35268291,240.95,240.88,19.4816]
[1732749235501,12.35268291,240.93,240.88,15.3302]
[1732749236095,12.35268291,240.95,240.88,19.4815]
[1732749236806,12.35268291,240.91,240.88,15.3302]
[1732749237106,12.35268291,240.89,240.88,15.3302]
[1732749237690,12.35268291,240.89,240.87,6.121]
[1732749238103,12.35268291,240.89,240.82,15.9759]
[1732749238405,12.35268291,240.89,240.82,20.1283]
[1732749240807,12.35268291,240.96,240.83,24.60504993]
[1732749240808,12.35268291,240.91,240.83,24.60504993]
[1732749240984,12.35268291,240.89,240.82,20.1283]
[1732749241407,12.35268291,240.89,240.82,15.9759]
[1732749241815,12.35268291,240.87,240.82,15.9759]
[1732749243890,12.35268291,240.87,240.81,6.473]
[1732749243891,12.35268291,240.83,240.81,6.473]
[1732749244103,12.35268291,240.83,240.76,15.9759]
[1732749244313,12.35268291,240.79,240.76,15.9759]
[1732749245313,12.35268291,240.81,240.76,15.9759]
[1732749246311,12.35268291,240.81,240.75,6.473]
[1732749247011,12.35268291,240.79,240.75,6.473]
[1732749247389,12.35268291,240.84,240.74,0.4831525]
[1732749247390,12.35268291,240.77,240.74,0.4831525]
[1732749247598,12.35268291,240.75,240.74,0.4831525]
[1732749248722,12.35268291,240.84,240.74,0.4831525]
[1732749248723,12.35268291,240.77,240.74,0.4831525]
[1732749250323,12.35268291,240.79,240.74,0.4831525]
[1732749250496,12.35268291,240.81,240.74,0.4831525]
[1732749251010,12.35268291,240.79,240.74,0.4831525]
[1732749252197,12.35268291,240.81,240.74,0.4831525]
[1732749253103,12.35268291,240.79,240.74,0.4831525]
[1732749253318,12.35268291,240.77,240.74,0.4831525]
[1732749253513,23.776884,240.89,240.74,0.4831525]
[1732749253514,12.35268291,240.79,240.74,0.4831525]
[1732749255108,12.35268291,240.77,240.74,0.4831525]
[1732749255843,12.35268291,240.84,240.74,0.4831525]
[1732749255844,12.35268291,240.75,240.74,0.4831525]
[1732749257058,20.0,240.72,240.6,0.82888097]
[1732749257210,20.0,240.72,240.57,18.524883]
[1732749257211,12.35268291,240.62,240.57,18.524883]
[1732749257405,12.35268291,240.62,240.57,6.1722]
[1732749257617,12.35268291,240.64,240.57,6.1722]
[1732749258412,12.35268291,240.66,240.58,36.12956691]
[1732749258711,12.35268291,240.68,240.6,12.35268291]
[1732749259209,12.35268291,240.68,240.58,36.12956691]
[1732749259623,12.35268291,240.66,240.58,40.28606691]
[1732749260019,12.35268291,240.66,240.58,27.933384]
[1732749260223,12.35268291,240.64,240.58,27.933384]
[1732749260418,12.35268291,240.66,240.58,27.933384]
[1732749263046,5.0,240.79,240.63,20.0]
[1732749263047,12.35268291,240.7,240.63,20.0]
[1732749263739,18.7,240.79,240.63,20.0]
[1732749263740,14.68812975,240.69,240.63,20.0]
[1732749263913,14.68812975,240.73,240.64,14.68812975]
[1732749264119,14.68812975,240.77,240.68,14.68812975]
[1732749264422,14.68812975,240.79,240.71,23.776884]
[1732749264622,14.68812975,240.79,240.71,24.60541126]
[1732749265016,14.68812975,240.79,240.73,23.776884]
[1732749265417,14.68812975,240.79,240.72,4.1542]
[1732749265636,14.68812975,240.79,240.71,0.82852726]
[1732749265637,14.68812975,240.79,240.71,23.776884]
[1732749265951,5.0,240.88,240.71,23.776884]
[1732749265952,14.68812975,240.77,240.71,23.776884]
[1732749266116,14.68812975,240.75,240.69,20.0]
[1732749266315,23.7,240.86,240.69,20.0]
[1732749266316,14.68812975,240.73,240.69,20.0]
[1732749266608,14.68812975,240.75,240.66,14.68812975]
[1732749266812,14.68812975,240.71,240.65,21.5562]
[1732749267533,14.68812975,240.69,240.65,21.5562]
[1732749268343,14.68812975,240.69,240.61,4.156]
[1732749269032,14.68812975,240.67,240.63,20.0]
[1732749270636,14.68812975,240.69,240.63,20.0]
[1732749271544,6.0353,240.8,240.63,24.1557]
[1732749271545,14.68812975,240.71,240.63,24.1557]
[1732749271843,14.68812975,240.73,240.67,20.0]
[1732749272520,14.68812975,240.77,240.71,20.0]
[1732749272718,14.68812975,240.79,240.72,30.015884]
[1732749273730,14.68812975,240.79,240.72,34.169984]
[1732749274622,14.68812975,240.75,240.72,6.239]
[1732749274827,15.3646,240.88,240.72,6.239]
[1732749274828,14.68812975,240.73,240.72,6.239]
[1732749275038,14.68812975,240.73,240.67,4.155]
[1732749275229,18.7,240.85,240.67,4.155]
[1732749275230,14.68812975,240.71,240.67,4.155]
[1732749275426,14.68812975,240.71,240.66,6.239]
[1732749275620,14.68812975,240.69,240.66,6.239]
[1732749276517,14.68812975,240.71,240.66,6.239]
[1732749276737,14.68812975,240.69,240.66,6.239]
[1732749280426,14.68812975,240.67,240.6,6.239]
[1732749280745,10.3646,240.76,240.6,6.239]
[1732749280920,14.68812975,240.67,240.6,6.239]
[1732749281242,14.68812975,240.63,240.6,6.239]
[1732749281438,14.68812975,240.61,240.52,4.1576]
[1732749281741,14.68812975,240.57,240.52,4.1576]
[1732749282442,14.68812975,240.57,240.49,0.4831525]
[1732749283021,14.68812975,240.55,240.49,0.4831525]
[1732749283828,14.68812975,240.55,240.49,20.4831525]
[1732749284621,14.68812975,240.55,240.49,0.4831525]
[1732749285527,14.68812975,240.53,240.49,0.4831525]
[1732749286245,14.68812975,240.51,240.49,0.4831525]
[1732749287734,18.7,240.65,240.49,34.93668225]
[1732749287923,14.68812975,240.6,240.53,14.68812975]
[1732749288530,1.0353,240.71,240.55,14.68812975]
[1732749288725,10.3646,240.74,240.49,25.2485525]
[1732749288726,14.68812975,240.64,240.58,23.776884]
[1732749288932,14.68812975,240.64,240.57,14.68812975]
[1732749289139,14.68812975,240.64,240.55,14.68812975]
[1732749289344,10.3646,240.74,240.55,14.68812975]
[1732749289345,18.7,240.75,240.59,14.68812975]
[1732749289543,18.7,240.75,240.58,22.1734]
[1732749289544,14.68812975,240.66,240.58,22.1734]
[1732749289847,14.68812975,240.66,240.59,23.776884]
[1732749290238,14.68812975,240.66,240.59,38.46501375]
[1732749290551,14.68812975,240.68,240.59,38.46501375]
[1732749290971,14.68812975,240.66,240.59,23.776884]
[1732749291867,14.68812975,240.66,240.59,27.933284]
[1732749292065,14.68812975,240.64,240.58,22.1734]
[1732749293370,14.68812975,240.66,240.59,23.776884]
[1732749293559,14.68812975,240.76,240.59,38.46501375]
[1732749293560,14.68812975,240.68,240.59,38.46501375]
[1732749294145,23.5056061,240.67,240.58,49.8356061]
[1732749296769,23.5056061,240.69,240.62,23.5056061]
[1732749297159,23.5056061,240.71,240.63,23.5056061]
[1732749297868,23.5056061,240.71,240.63,4.1556]
[1732749298060,23.5056061,240.69,240.63,4.1556]
[1732749298249,23.5056061,240.69,240.62,20.0]
[1732749298446,23.5056061,240.69,240.61,4.1559]
[1732749298651,5.0,240.83,240.61,4.1559]
[1732749298652,23.5056061,240.73,240.65,23.5056061]
[1732749298848,23.5056061,240.75,240.65,23.5056061]
[1732749299047,23.5056061,240.75,240.67,23.5056061]
[1732749299261,23.5056061,240.77,240.68,22.1734]
[1732749299876,23.5056061,240.77,240.69,27.6603061]
[1732749300377,42.2056061,240.89,240.69,27.6603061]
[1732749300378,23.5056061,240.81,240.72,23.776884]
[1732749300565,23.5056061,240.83,240.74,23.776884]
[1732749300744,23.5056061,240.83,240.75,23.5056061]
[1732749300947,23.5056061,240.83,240.69,14.5415]
[1732749300948,23.5056061,240.81,240.71,23.5056061]
[1732749301174,23.5056061,240.77,240.69,4.1547]
[1732749302851,23.5056061,240.75,240.68,22.1734]
[1732749303178,23.5056061,240.77,240.68,26.3282]
[1732749303374,23.5056061,240.81,240.73,23.5056061]
[1732749303673,23.5056061,240.79,240.71,23.5056061]
[1732749303848,23.5056061,240.77,240.7,23.776884]
[1732749304054,23.5056061,240.89,240.7,23.776884]
[1732749304055,23.5056061,240.79,240.72,23.776884]
[1732749304654,23.5056061,240.77,240.72,20.0]
[1732749305066,23.5056061,240.79,240.69,23.5056061]
[1732749305385,23.5056061,240.79,240.71,43.5056061]
[1732749305888,23.5056061,240.79,240.71,20.0]
[1732749306114,28.96810775,240.89,240.68,22.1734]
[1732749306115,23.5056061,240.75,240.68,22.1734]
[1732749306385,23.5056061,240.77,240.68,22.1734]
[1732749306884,23.776884,240.86,240.68,22.1734]
[1732749306885,23.5056061,240.73,240.68,22.1734]
[1732749308687,23.5056061,240.71,240.68,22.1734]
[1732749308869,23.5056061,240.73,240.68,22.1734]
[1732749309069,23.5056061,240.71,240.68,22.1734]
[1732749309266,23.5056061,240.71,240.62,15.4082]
[1732749309462,20.0,240.8,240.65,23.5056061]
[1732749309671,23.5056061,240.74,240.65,23.5056061]
[1732749310070,23.5056061,240.72,240.62,20.39296491]
[1732749310285,23.5056061,240.72,240.63,23.5056061]
[1732749310498,23.5056061,240.76,240.68,20.0]
[1732749310669,23.5056061,240.78,240.73,20.0]
[1732749310861,11.3999,240.88,240.74,35.4082]
[1732749310862,23.5056061,240.8,240.74,35.4082]
[1732749311069,23.5056061,240.82,240.75,23.776884]
[1732749311369,23.5056061,240.82,240.74,35.4082]
[1732749311576,23.47815144,240.81,240.75,20.0]
[1732749311778,23.47815144,240.81,240.74,15.4082]
[1732749311984,23.47815144,240.77,240.7,6.2948]
[1732749312488,23.47815144,240.75,240.7,6.2948]
[1732749312697,23.47815144,240.73,240.7,6.2948]
[1732749313063,23.47815144,240.73,240.64,23.47815144]
[1732749313064,23.47815144,240.73,240.64,29.77295144]
[1732749313492,23.47815144,240.71,240.64,6.2948]
[1732749313678,23.47815144,240.69,240.64,6.2948]
[1732749314695,23.47815144,240.73,240.64,33.92845144]
[1732749315196,23.47815144,240.73,240.67,20.0]
[1732749315889,23.47815144,240.75,240.68,23.47815144]
[1732749316075,23.47815144,240.75,240.69,20.0]